Workbook

Sheet 표지
A5: 2021학년도
A6: 타이뻬이한국학교회계 2차 추가경정 세입세출 예산
A19: 타 이 뻬 이 한 국 학 교

Sheet 총칙
A2: 예 산 총 칙
B4: 제 1 조 2021학년도 타이뻬이한국학교회계 2차 세입ㆍ세출 예산 총액은 세입ㆍ세출 각각 19,957,995NTD로
B5: 하며, 세입ㆍ세출의 명세는 『세입ㆍ세출예산서』와 같다.
B7: 제2조 국가로부터 용도가 지정되어 교부된 경비 또는 수익자부담경비는 추가경정예산의 성립 전에
B8: 사용할 수 있으며, 이를 차기 추가경정예산에 반영한다.
B10: 제3조 동일 예산 관내의 항간 또는 목간에 예산의 과부족이 있는 경우에는 사학기관재무ㆍ회계규칙
B11: 제21조 제3항의 규정에 의하여 상호 전용할 수 있다.
B12: 단, 회계연도 경과 후에는 예산을 전용할 수 없으며, 업무추진비에 충당하기 위하여 다른
B13: 비목에서 전용할 수 없다.
B15: 제4조 다음의 경비에 부족이 생겼을 때에는 비목 상호간 또는 타 비목으로부터 이용할 수 있다.
B16: 단; 인건비 및 시설비의 예산은 다른 과목으로 이용할 수 없다.
B17: 1. 교원 및 직원 인건비, 연구비, 수당
B18: 2. 비정규직보수, 강사료
B19: 3. 세금, 공과금, 반환금

Sheet 세입
A1: 2021학년도 타이뻬이한국학교회계 2차 추경 세입․세출예산서
A2: (회계연도 2021년 3월 1일 ~ 2022년 2월 28일)
A3: □ 세입
A4: 【단위 : 현지화 NTD 1USD=27.18NTD】
A5: 구 분 | C5: (Y-1)예산 | D5: (Y-2)결산 | E5: (Y)예산 | F5: 증감 | G5: 산출기초(단위: NTD) | J5: 비고
C6: (A) | D6: (B) | E6: (C) | F6: (C-A)
A7: 학부모부담수입 | C7: =C9+C12+C20 -> 6,543,068 | D7: 0 | E7: =E9+E12+E18+E20 -> 6,302,880 | F7: =E7-C7 -> -240,188
B9: - 입학금 | C9: 595,000 | E9: =I9 -> 645,000 | F9: =E9-C9 -> 50,000 | G9: 1. 입학금 | I9: =SUM(I10:I11) -> 645,000
G10: ㅇ유치원 9명 | H10: = | I10: 300,000
G11: ㅇ초등학생 18명 | H11: = | I11: =15000*13+30000*5 -> 345,000
B12: - 수업료 | C12: 3,954,534 | E12: =I12 -> 3,879,284 | F12: =E12-C12 -> -75,250 | G12: 1. 수업료 | I12: =SUM(I13:I16) -> 3,879,284
G13: ㅇ유치원 수업료 (1학기 24명) | H13: = | I13: 587,500
G14: ㅇ유치원 수업료 (2학기 22명) | H14: = | I14: 840,000
G15: ㅇ초등학생 수업료(1학기 44명) | H15: = | I15: 1,292,784
G16: ㅇ초등학생 수업료(2학기 39명) | H16: = | I16: 1,159,000
G17: 2. 지난년도 수업료 | I17: 0
B18: - 학교운영지원비 | C18: 0 | D18: 0 | E18: =I18 -> 0 | F18: =E18-C18 -> 0 | G18: 1. 학교운영지원비 | I18: 0
B20: - 수익자부담경비 | C20: 1,993,534 | E20: =I20+I25+I31+I33+I29 -> 1,778,596 | F20: =E20-C20 -> -214,938 | G20: 1. 급식비 | I20: =SUM(I21:I24) -> 966,150
G21: ㅇ교직원 1학기 10명 단가 50NTD | H21: = | I21: 24,850
G22: ㅇ교직원 2학기 9명 단가 50NTD | H22: = | I22: 39,700
G23: ㅇ학생 1학기 68명단가 100NTD | H23: = | I23: 356,800
G24: ㅇ학생 2학기 61명단가 100NTD | H24: = | I24: 544,800
G25: 2. 현장체험학습비 | I25: =I26+I27+I28 -> 63,698
G26: ㅇ초등 현장체험학습비 | H26: = | I26: =39*345 -> 13,455
G27: ㅇ유치원 현장체험학습비 | H27: = | I27: 13,824
G28: ㅇ초등 수학여행비 | H28: = | I28: 36,419
G29: 3. 토요한글학교운영비 | I29: =SUM(I30:I30) -> 192,270
G30: ㅇ토요한글학교 수업료 | H30: = | I30: 192,270
G31: 4. 방과후교육활동비 | I31: =SUM(I32:I32) -> 90,876
G32: ㅇ방과후교육활동비 | H32: = | I32: 90,876
G33: 5. 기타수익자부담경비 | I33: =SUM(I34:I37) -> 465,602
G34: ㅇ통학버스비 | H34: = | I34: 377,898
G35: ㅇ유치원 간식비 | H35: = | I35: 64,682
G36: ㅇ졸업앨범(초등학교) 3명× 1,634 NTD | H36: = | I36: =1634*3 -> 4,902
G37: ㅇ졸업앨범(유치원) 10명× 1,812 NTD | H37: = | I37: =1812*10 -> 18,120
A38: 교육부지원금 | C38: =SUM(C40:C56) -> 11,251,898 | D38: 0 | E38: =SUM(E40,E42,E44,E48,E50,E46,E52) -> 11,285,184 | F38: =F40+F42+F44+F46+F48+F50+F52 -> 33,286
B40: - 현재채용교직원인건비 | C40: 5,722,556 | E40: =I40 -> 5,937,513 | F40: =E40-C40 -> 214,957 | G40: 1. 현재채용교직원인건비 | I40: =SUM(I41) -> 5,937,513
G41: ㅇ인건비 5,937,513NTD×1년 | H41: = | I41: 5,937,513
B42: - 운영비 | C42: 4,214,644 | E42: =I42 -> 4,140,288 | F42: =E42-C42 -> -74,356 | G42: 1. 운영비 | I42: =SUM(I43) -> 4,140,288
G43: ㅇ운영비 4,140,288NTD×1년 | H43: = | I43: 4,140,288
B44: - 임차료 | C44: 46,312 | E44: =I44 -> 39,930 | F44: =E44-C44 -> -6,382 | G44: 1. 임차료 | I44: =SUM(I45:I45) -> 39,930
G45: ㅇ나대지 39,930TD(1년)×1회 | H45: = | I45: 39,930
B46: - 저소득층자녀지원 | C46: 150,000 | D46: 0 | E46: 84,000 | F46: =E46-C46 -> -66,000 | G46: 1. 저소득층자녀지원 | I46: =I47 -> 84,000
G47: ㅇ저소득층자녀지원금 150,000NTD×1회 | I47: 84,000
B48: - 방과후학교지원 | C48: 150,000 | D48: 0 | E48: =I48 -> 129,143 | F48: =E48-C48 -> -20,857 | G48: 1. 방과후학교지원 | I48: =SUM(I49) -> 129,143
G49: ㅇ방과후학교운영비 | H49: = | I49: 129,143
B50: - 시설(대수선)비 | C50: 432000 | E50: =I50 -> 432,000 | F50: =E50-C50 -> 0 | G50: 1. 시설(대수선)비 | I50: =I51 -> 432,000
G51: ㅇ운동장 우레탄바닥 교체 공사비(특이소요) | H51: = | I51: 432,000
B52: - 기타교육부지원금 | C52: 536,386 | D52: 0 | E52: =I52 -> 522,310 | F52: =E52-C52 -> -14,076 | G52: 1. 기타교육부지원 | I52: =SUM(I53:I56) -> 522,310
G53: ㅇ토요한글학교운영비(재단지원금) | H53: = | I53: 139,524
G54: ㅇ교수학습자료 개발 연구회비 | H54: = | I54: 48,695
G55: ㅇ원격수업 기자재 구입비 | H55: = | I55: 63,406
G56: ㅇ교수학습재료구입비 | H56: = | I56: 270,685
A57: 자체수입 | C57: =SUM(C59+C63) -> 11,500 | D57: 0 | E57: =E59+E63 -> 11,500 | F57: =SUM(F59,F63) -> 0
B59: - 사용료및수수료 | C59: 5,500 | E59: =I59+I61 -> 5,500 | F59: =E59-C59 -> 0 | G59: 1.사용료 | I59: =SUM(I60) -> 3,500
G60: ㅇ 교실 및 강당 사용료 3,500NTD×1회 | H60: = | I60: 3,500
G61: 2. 수수료 | I61: =SUM(I62) -> 2,000
G62: ㅇ제증명발급 수수료 100NTD×3건+1,700 NTD | H62: = | I62: =100*3+1700 -> 2,000
B63: - 잡수입 | C63: 6,000 | E63: =I63+I65+I66 -> 6,000 | F63: =E63-C63 -> 0 | G63: 1. 이자수입 | I63: =SUM(I64) -> 6,000
G64: ㅇ예금이자 3,000NTD×2회 | H64: = | I64: =3000*2 -> 6,000
G65: 2. 지난년도 수입 | I65: 0
G66: 3. 기타잡수입 | I66: =SUM(I67:I67) -> 0
H67: =
A68: 전입금 및 지원금 | C68: =SUM(C70:C75) -> 0 | D68: 0 | E68: =E70+E72+E74 -> 0 | F68: 0
B70: - 학교발전기금전입금 | C70: 0 | D70: 0 | E70: =I70 -> 0 | F70: =E70-C70 -> 0 | G70: 1. 학교발전기금전입금 | I70: =I71 -> 0
I71: 0
B72: - 법인전입금 | C72: 0 | D72: 0 | E72: =I72 -> 0 | F72: =E72-C72 -> 0 | G72: 1. 법인전입금 | I72: 0
B74: - 기타지원금 | C74: 0 | D74: 0 | E74: =I74 -> 0 | F74: =E74-C74 -> 0 | G74: 1. 기타지원금 | I74: 0
A76: 기타수입 | C76: =SUM(C78:C88) -> 2,358,431 | D76: 0 | E76: =E78+E80+E85+E87 -> 2,358,431 | F76: =SUM(F78,F80,F85,F87) -> 0
B78: - 과년도 수입 | C78: 0 | D78: 0 | E78: =I78 -> 0 | F78: =E78-C78 -> 0 | G78: 1. 과년도수입 | I78: 0
B80: - 이월금 | C80: 2,358,431 | E80: 2,358,431 | F80: =E80-C80 -> 0 | G80: 1. 순세계잉여금 | I80: =I81 -> 2,358,431
G81: ㅇ 2020학년도 회계 잉여금 | H81: = | I81: 2,358,431
G82: 2. 계속비 | I82: 0
G83: 3. 이월사업비
B85: - 적립금 | C85: 0 | D85: 0 | E85: =I85 -> 0 | F85: =E85-C85 -> 0 | G85: 1. 적립금 | I85: 0
B87: - 환차익 | C87: 0 | D87: 0 | E87: =I87 -> 0 | F87: =E87-C87 -> 0 | G87: 1. 환차익 | I87: 0
A89: 합 계 | C89: =C76+C68+C57+C38+C7 -> 20,164,897 | D89: 0 | E89: =SUM(E76,E68,E57,E38,E7) -> 19,957,995 | F89: =E89-C89 -> -206,902

Sheet 세출
A1: □ 세출
A2: 【단위 : 현지화 NTD 1USD=27.18NTD】
A3: 구 분 | C3: (Y-1)예산 | D3: (Y-2)결산 | E3: (Y)예산 | F3: 증감 | G3: 산출기초(단위: NTD) | J3: 비고
C4: (A) | D4: (B) | E4: (C) | F4: (C-A)
A5: 인건비 | C5: =SUM(C7,C24,C49) -> 12,628,460 | D5: 0 | E5: =SUM(E7,E24,E49) -> 12,472,410 | F5: =E5-C5 -> -156,050
B7: - 교원 | C7: 5,804,200 | E7: =SUM(I7,I10,I19,I21) -> 5,804,200 | F7: =E7-C7 -> 0 | G7: 1. 기본급 | I7: =SUM(I8:I9) -> 3,361,200
G8: ㅇ교사 45,000NTD×4명×12월 | H8: = | I8: =45000*4*12 -> 2,160,000
G9: ㅇ시간강사 500NTD×3명×4.4시간×182일 | H9: = | I9: =500*3*4.4*182 -> 1,201,200
G10: 2. 수당 | I10: =SUM(I11:I18) -> 2,069,000
G11: ㅇ담임수당 4,000NTD×4명×12월 | H11: = | I11: =4000*4*12 -> 192,000
G12: ㅇ부장수당 4,000NTD×1명×12월 | H12: = | I12: =4000*1*12 -> 48,000
G13: ㅇ복지수당 7,000NTD×4명×12월 | H13: = | I13: =7000*4*12 -> 336,000
G14: ㅇ주택수당 19,000NTD×4명×12월 | H14: = | I14: =19000*4*12 -> 912,000
G15: ㅇ부양가족 추가 주택수당 2,000NTD×2명×12월 | H15: = | I15: =2000*2*12 -> 48,000
G16: ㅇ경력수당 7,000NTD×4명×12월 | H16: = | I16: =7000*4*12 -> 336,000
G17: ㅇ보전수당 4,000NTD×4명×12월 | H17: = | I17: =4000*4*12 -> 192,000
G18: ㅇ시간외근무수당 250NTD×20시간 | H18: = | I18: 5,000
G19: 3. 복리후생비 | I19: =SUM(I20) -> 216,000
G20: ㅇ명절휴가비 45,000NTD×4명×2회×60% | H20: = | I20: =45000*4*2*0.6 -> 216,000
G21: 4. 부담금 | I21: =SUM(I22:I23) -> 158,000
G22: ㅇ건강보험기관부담금부담금 17,000NTD×4명 | H22: = | I22: =17000*4 -> 68,000
G23: ㅇ건강보험보충부담금(2019년도분) | H23: = | I23: 90,000
B24: - 직원 및 계약교직원 | C24: 6,344,260 | E24: =SUM(I24,I37,I44,I46) -> 6,143,210 | F24: =E24-C24 -> -201,050 | G24: 1. 기본급 | I24: =SUM(I25:I36) -> 5,198,610
G25: ㅇ실장 45,000NTD×1명×12월 | H25: = | I25: =45000*12 -> 540,000
G26: ㅇ행정원 34,000NTD×1명×12월 | H26: = | I26: =34000*12 -> 408,000
G27: ㅇ유치원 교육전담사 230NTD×1명×8시간×146일 | H27: = | I27: =230*8*146 -> 268,640
G28: ㅇ유치원 보조원
G29: 180NTD×1명×6시간×53일+180NTD×1명×3시간×94일 | H29: = | I29: =180*6*53+180*3*94 -> 108,000
G30: ㅇ유치원 시간강사 500NTD×1명×6시간×182일 | H30: = | I30: =500*1*6*182 -> 546,000
G31: ㅇ영어 강사수당 660NTD×1명×6시간×180일+660NTD×2명×4시간×180일 | H31: = | I31: =660*1*6*180+660*2*4*180 -> 1,663,200
G32: ㅇ중국어 강사수당 610NTD×2명×6시간×143일+550NTD×1명×2시간×143일 | H32: = | I32: =610*6*2*143+550*2*143 -> 1,204,060
G33: ㅇ외국어강사 부장수당 2,000NTD×2명×10월 | H33: = | I33: =2000*2*10 -> 40,000
G34: ㅇ통학버스 안전도우미 인건비 180NTD×2명×147일×6시간 | H34: = | I34: =180*147*6 -> 158,760
G35: ㅇ통학버스 기사 안건비(47일분) 335NTD×1명×47일×5시간+435NTD×1명×47일×5시간 | H35: = | I35: =335*47*5+435*47*5 -> 180,950
G36: ㅇ태권도 강사수당 900NTD×1명×3시간×30주 | H36: = | I36: =900*3*30 -> 81,000
G37: 2. 수당 | I37: =SUM(I38:I43) -> 581,000
G38: ㅇ직책수당(실장) 4,000NTD×1명×12월 | H38: = | I38: =4000*12 -> 48,000
G39: ㅇ경력수당(실장,행정원) 9,000NTD×12월 | H39: = | I39: =9000*12 -> 108,000
G40: ㅇ복지수당 7,000NTD×2명×12월 | H40: = | I40: =7000*2*12 -> 168,000
G41: ㅇ부양가족 추가 주택수당 2,000NTD×1명×12월 | H41: = | I41: =2000*1*12 -> 24,000
G42: ㅇ주택수당(실장) 19,000NTD×1명×12월 | H42: = | I42: =19000*12 -> 228,000
G43: ㅇ시간외근무수당 250NTD×20시간 | H43: = | I43: 5,000
G44: 3. 복리후생비 | I44: =SUM(I45:I45) -> 94,800
G45: ㅇ명절휴가비 39,500NTD×2명×2회×60% | H45: = | I45: =39500*2*2*0.6 -> 94,800
G46: 4. 부담금 | I46: =SUM(I47:I48) -> 268,800
G47: ㅇ건강보험기관부담금부담금 16,000NTD×12월 | H47: = | I47: =16000*12 -> 192,000
G48: ㅇ노동보험기관부담금 3,200NTD×12월 | H48: = | I48: =6400*12 -> 76,800
B49: - 퇴직적립금 | C49: 480,000 | E49: =SUM(I49,I51) -> 525,000 | F49: =E49-C49 -> 45,000 | G49: 1. 퇴휴금 | I49: =SUM(I50:I50) -> 210,000
G50: ㅇ대만국적자 직원 퇴휴금 12명 | H50: = | I50: 210,000
G51: 2.재외교육기여장려금 | I51: =SUM(I52:I52) -> 315,000
G52: ㅇ교직원 4명 | H52: = | I52: 315,000
A53: 학교운영비 | C53: =SUM(C55,C81,C131,C155) -> 3,667,369 | D53: 0 | E53: =E55+E81+E131+E155 -> 3,418,733 | F53: =E53-C53 -> -248,636 | H53: =
B55: - 일반운영비 | C55: 1,253,118 | E55: =I55+I64+I77+I79 -> 1,268,150 | F55: =E55-C55 -> 15,032 | G55: 1. 교육지원부 운영 | I55: =SUM(I56:I63) -> 169,150
G56: ㅇ여비(국내) 200원×12명×2회×12월 | H56: = | I56: =200*12*2*12 -> 57,600
G57: ㅇ거류비자 및 공작증 신청 4,500NTD×4명 | H57: = | I57: =4500*4 -> 18,000
G58: ㅇ교직원 귀임 및 부임 항공료 6,500NTD×5명 | H58: = | I58: =6500*5 -> 32,500
G59: ㅇ홈페이지 도메인 사용료 750NTD×1년 | H59: = | I59: 750
G60: ㅇ예금잔액증명 발급수수료 500NTD×5회 | H60: = | I60: =500*5 -> 2,500
G61: ㅇ타행송금및환전수수료(납입금환불) 30NTD×50회 | H61: = | I61: =30*50 -> 1,500
G62: ㅇ행정장비 유지보수 6,300NTD×1회 | H62: = | I62: =6300 -> 6,300
G63: ㅇ행정장비 소모품 구입 10,000NTD×5회 | H63: = | I63: =10000*5 -> 50,000
G64: 2. 학교시설장비유지 | I64: =SUM(I65:I76) -> 982,200
G65: ㅇ전화 및 인터넷요금 5,500N*12월 | H65: = | I65: =5500*12 -> 66,000
G66: ㅇ전기요금 20,000NTD×12월 | H66: = | I66: =20000*12 -> 240,000
G67: ㅇ상하수도요금 500NTD×12월 | H67: = | I67: =500*12 -> 6,000
G68: ㅇ우편요금 150NTD×12월 | H68: = | I68: =150*12 -> 1,800
G69: ㅇ건물 청소용역 24,000NTD×10월 | H69: = | I69: =24000*10 -> 240,000
G70: ㅇ화장실 소모품 및 청소용품 2,000NTD×4회 | H70: = | I70: =2000*4 -> 8,000
G71: ㅇ기계경비용역료 7,000NTD×12월 | H71: = | I71: =7000*12 -> 84,000
G72: ㅇ시설소모품구입 10,000NTD×10회 | H72: = | I72: =10000*10 -> 100,000
G73: ㅇ소방정밀점검 12,000NTD×1회 | H73: = | I73: =12000*1 -> 12,000
G74: ㅇ승강기안전관리용역 3,000NTD×12월 | H74: = | I74: =3000*12 -> 36,000
G75: ㅇ전기안전관리용역 3,200NTD×12월 | H75: = | I75: =3200*12 -> 38,400
G76: ㅇ소규모수선 10,000NTD×15회 | H76: = | I76: =10000*15 -> 150,000
G77: 3. 교직원 복지 및 역량강화 | I77: =SUM(I78:I78) -> 58,800
G78: ㅇ행정실 유치원 직원 중식 지원 100NTD×4명×147일 | H78: = | I78: =100*4*147 -> 58,800
G79: 4. 임차료 | I79: =SUM(I80:I80) -> 58,000
G80: ㅇ나대지 58,000NTD×1년 | H80: = | I80: 58,000
B81: - 교수학습 활동비 | C81: 1,316,301 | E81: =SUM(I81,I89,I91,I93,I98,I104,I106,I113,I117,I119,I121,I126,I128) -> 1,101,353 | F81: =E81-C81 -> -214,948 | G81: 1. 교과활동지원 | I81: =SUM(I82:I88) -> 483,786
G82: ㅇ학습준비물(교수학습자료지원금) | H82: = | I82: 270,685
G83: ㅇ사무용품 구입 | H83: = | I83: =2000*5 -> 10,000
G84: ㅇ교수학습자료 개발 연구회비(교욱부 지원금) | H84: = | I84: 48,695
G85: ㅇ원격수업 기자재 구입(교육부 지원금) | H85: = | I85: 63,406
G86: ㅇ복사용지(교수학습자료지원금) 5,000NTD×2회 | H86: = | I86: =5000*2 -> 10,000
G87: ㅇ행정장비 소모품(교수학습자료지원금) 4,000NTD×6회 | H87: = | I87: 24,000
G88: ㅇ보결수당 300NTD×190시간 | H88: = | I88: =300*190 -> 57,000
G89: 2. 예체능교과활동(초등학교) | I89: =SUM(I90:I90) -> 9,000
G90: ㅇ태권도복 600NTD×15벌 | H90: = | I90: =600*15 -> 9,000
G91: 3. 예체능교과활동(유치원) | I91: =SUM(I92:I92) -> 0
H92: =
G93: 4. 영어교과활동 | I93: =SUM(I94:I97) -> 104,700
G94: ㅇ학습준비물 100NTD×45명×2회 | H94: = | I94: =100*45*2 -> 9,000
G95: ㅇ공책 10NTD×45부×6회 | H95: = | I95: =10*45*6 -> 2,700
G96: ㅇ교재 | H96: = | I96: 92,000
G97: ㅇ행사물품 1,000NTD×1회 | H97: = | I97: =1000*1 -> 1,000
G98: 5. 중국어교과활동 | I98: =SUM(I99:I103) -> 48,900
G99: ㅇ학습준비물 100NTD×45명×2회 | H99: = | I99: =100*45*2 -> 9,000
G100: ㅇ공책 10NTD×45부×6회 | H100: = | I100: =10*45*6 -> 2,700
G101: ㅇ교재 400NTD×90부 | H101: = | I101: =400*90 -> 36,000
G102: ㅇ행사물품 1,000NTD×1회 | H102: = | I102: =1000*1 -> 1,000
G103: ㅇ중국어능력평가 우편요금 50NTD×4회 | H103: = | I103: 200
G104: 6.유치원 교과활동 | I104: =SUM(I105:I105) -> 48,000
G105: ㅇ학습준비물 1000NTD×24명×2회 | H105: = | I105: =1000*24*2 -> 48,000
G106: 7. 자율활동(초등학교) | I106: =SUM(I107:I112) -> 83,200
G107: ㅇ학급운영비 400NTD×41명×2회 | H107: = | I107: =400*41*2 -> 32,800
G108: ㅇ환경정리 500NTD×6학급 | H108: = | I108: 3,000
G109: ㅇ학예회 무대장식 4,000NTD×1회 | H109: = | I109: =4000*1 -> 4,000
G110: ㅇ학예회 준비물품 400NTD×41명 | H110: = | I110: =400*41 -> 16,400
G111: ㅇ체육대회 준비물품 400NTD×65개 | H111: = | I111: =400*65 -> 26,000
G112: ㅇ체육대회 장소임대 1,000NTD×1회 | H112: = | I112: 1,000
G113: 8. 자율활동(유치원) | I113: =SUM(I114:I116) -> 14,900
G114: ㅇ학급운영비 200NTD×24명×2회 | H114: = | I114: =200*24*2 -> 9,600
G115: ㅇ학예회경비 400NTD×24명 | H115: = | I115: =200*24 -> 4,800
G116: ㅇ환경정리 500NTD×1학급 | H116: = | I116: 500
A117: · | G117: 9. 교무업무운영 | I117: =SUM(I118:I118) -> 4,000
G118: ㅇ학교교육계획서 제작 400NTD×10부 | H118: = | I118: 4,000
G119: 10 입학식 및 졸업식(초등학교) | I119: =SUM(I120:I120) -> 15,000
G120: ㅇ입학식 선물 1000NTD×15명 | H120: = | I120: =1000*15 -> 15,000
G121: 11. 입학식 및 졸업식(유치원) | I121: =SUM(I122:I125) -> 21,200
G122: ㅇ입학선물 1,000NTD×10명 | H122: = | I122: =1000*10 -> 10,000
G123: ㅇ졸업사진 촬영(교원) 800NTD×3명 | H123: = | I123: =800*3 -> 2,400
G124: ㅇ졸업앨범 제작(학교보관용) 800NTD×1부 | H124: = | I124: =800*1 -> 800
G125: ㅇ졸업선물 800NTD×10명 | H125: = | I125: =800*10 -> 8,000
G126: 12. 토요한글학교 운영(재외동포재단지원금) | I126: =SUM(I127:I127) -> 139,524
G127: ㅇ강사비 1,200NTD×4시간×14주×2명 | H127: = | I127: 139,524
G128: 13. 방과후학교운영 | I128: =SUM(I129:I130) -> 129,143
G129: ㅇ강사수당(교육부지원금) | H129: = | I129: 129,143
A131: - 학생복리비 | C131: 1,014,950 | E131: =I131+I135+I141+I143+I148+I151+I153 -> 966,230 | F131: =E131-C131 -> -48,720 | G131: 1. 학생보건안전관리 | I131: =SUM(I132:I134) -> 51,650
G132: ㅇ학교안전공제회비(학생,교직원) 550NTD×53명 | H132: = | I132: =550*53 -> 29,150
G133: ㅇ응급학생 병원후송 500NTD×5회 | H133: = | I133: =500*5 -> 2,500
G134: ㅇ약품 2,000NTD×10회 | H134: = | I134: =2000*10 -> 20,000
G135: 2. 학교환경위생관리 | I135: =SUM(I136:I140) -> 266,600
G136: ㅇ정수기 필터교환 650NTD×2대×12회 | H136: = | I136: =650*2*12 -> 15,600
G137: ㅇ정수기 소독 3,500NTD×2대×1회 | H137: = | I137: =3500*2 -> 7,000
G138: ㅇ저수조 청소 5,000NTD×2회 | H138: = | I138: =5000*2 -> 10,000
G139: ㅇ방학중 대청소 45,000NTD×2회 | H139: = | I139: =2*45000 -> 90,000
G140: ㅇ교사 소독 9,000NTD×16회= | H140: = | I140: =9000*16 -> 144,000
G141: 3. 학교급식비 지원 | I141: =SUM(I142:I142) -> 181,880
G142: ㅇ간식비 지원 20NTD*142일*64명 | H142: = | I142: 181,880
G143: 4. 통학차량 운영지원 | I143: =SUM(I144:I147) -> 271,400
G144: ㅇ차량 보험료 40,00NTD×2대×1년 | H144: = | I144: =40000*2 -> 80,000
G145: ㅇ차량 등록세 및 연료세 15,00NTD×2대×1년 | H145: = | I145: =15000*2 -> 30,000
G146: ㅇ주차요금 7,000NTD×3분기 | H146: = | I146: =7000*3 -> 21,000
G147: ㅇ차량 유류 15,600NTD×9월 | H147: = | I147: =15600*9 -> 140,400
G148: 5. 현장학습 지원 | I148: =SUM(I149:I150) -> 38,700
G149: ㅇ현장학습 차량 임차비 11,700NTD×1회 | H149: = | I149: 11,700
G150: ㅇ현장학습 차량비 지원(기사인건비) 750NTD×1명×12회×3시간 | H150: = | I150: =750*1*12*3 -> 27,000
G151: 6. 저소득층자녀 학비지원(교육부지원금) | I151: =I152 -> 84,000
G152: ㅇ저소득층 자녀 학비 지원금 84,000NTD | H152: = | I152: 84,000
G153: 7. 기타 학생복지 지원 | I153: =I154 -> 72,000
G154: ㅇ신임 교직원 코로나 격리 비용 지원 12,000NTD×6명 | H154: = | I154: 72,000
B155: - 업무추진비 | C155: 83,000 | E155: =SUM(I155) -> 83,000 | F155: =E155-C155 -> 0 | G155: 1. 기관업무추진비 | I155: =SUM(I156:I157) -> 83,000
G156: ㅇ경조사비 1,500NTD×2회 | H156: = | I156: =1500*2 -> 3,000
G157: ㅇ교직원 간담회 500NTD×20명×8회 | H157: = | I157: =500*20*8 -> 80,000
A158: 자산취득비 | C158: =C160 -> 20,000 | D158: 0 | E158: =E160 -> 20,000 | F158: =E158-C158 -> 0 | H158: =
B160: - 자산취득비 | C160: 20,000 | E160: =I160 -> 20,000 | F160: =E160-C160 -> 0 | G160: 1. 교육환경개선 | I160: =SUM(I161) -> 20,000
G161: ㅇ 사무용 비품 5,000NTD×4회 | H161: = | I161: =5000*4 -> 20,000
A162: 시설(대수선)비 | C162: =SUM(C164) -> 1,855,534 | D162: 0 | E162: =SUM(E164) -> 2,268,256 | F162: =E162-C162 -> 412,722 | H162: =
B164: - 시설비 | C164: 1,855,534 | E164: =I164 -> 2,268,256 | F164: =E164-C164 -> 412,722 | G164: 1. 시설비 | I164: =SUM(I165:I166) -> 2,268,256
G165: ㅇ 운동장 우레탄 바닥 교체 공사 | H165: = | I165: 432,000
G166: ㅇ 시설 개보수비 | H166: = | I166: 1,836,256
A167: 수익자부담경비 | C167: =SUM(C169,C175,C177,C186,C192) -> 1,993,534 | D167: 0 | E167: =SUM(E169,E175,E177,E186,E192) -> 1,778,596 | F167: =E167-C167 -> -214,938 | H167: =
B169: - 현장학습비 | C169: 7,224 | E169: =SUM(I169,I171,I173) -> 63,698 | F169: =E169-C169 -> 56,474 | G169: 1. 현장체험학습(초등학교) | I169: =SUM(I170:I170) -> 13,455
G170: ㅇ 활동비 및 입장료 39명 | H170: = | I170: 13,455
G171: 2. 현장체험학습(유치원) | I171: =SUM(I172:I172) -> 13,824
G172: ㅇ 활동비 및 입장료 24명 | H172: = | I172: 13,824
G173: 3. 수학여행 | I173: =SUM(I174:I174) -> 36,419
G174: ㅇ 활동비 3명 | H174: = | I174: 36,419
B175: - 학생수련활동비 | C175: 0 | D175: 0 | E175: 0 | F175: =E175-C175 -> 0 | G175: 1. 수련활동비 | I175: 0
B177: - 학교급식비 | C177: 1,109,010 | E177: =SUM(I177,I179,I184,I182) -> 1,030,832 | F177: =E177-C177 -> -78,178 | G177: 1. 급식 재료구입비 | I177: =SUM(I178) -> 300,000
G178: ㅇ 식재료 구입비 10.000NTD×30주 | H178: = | I178: 300,000
G179: 2. 급식종사원인건비 | I179: =SUM(I180:I181) -> 648,050
G180: ㅇ 조리사 400NTD×147일×6시간 | H180: = | I180: 324,025
G181: ㅇ 조리원 400NTD×147일×6시간 | H181: = | I181: 324,025
G182: 3. 운영비 | I182: =I183 -> 18,100
G183: ㅇ 조리기구 구입비 | H183: = | I183: 18,100
G184: 4. 유치원 간식비 | I184: =SUM(I185:I185) -> 64,682
G185: ㅇ 간식비 24명 | H185: = | I185: 64,682
B186: - 방과후학교교육활동비 | C186: 345,600 | E186: =SUM(I186,I189) -> 283,146 | F186: =E186-C186 -> -62,454 | G186: 1. 방과후학교 운영 | I186: =SUM(I187:I188) -> 90,876
G187: ㅇ강사수당 | H187: = | I187: 81,789
G188: ㅇ전기요금 및 수용비 | H188: = | I188: 9,087
G189: 2. 토요한글학교 운영 | I189: =SUM(I190:I191) -> 192,270
G190: ㅇ강사수당 | H190: = | I190: 24,270
G191: ㅇ관리자 수당 14,000NTD×12월 | H191: = | I191: =14000*12 -> 168,000
B192: - 기타수익자 부담경비 | C192: 531,700 | E192: =SUM(I192,I195,I197) -> 400,920 | F192: =E192-C192 -> -130,780 | G192: 1. 통학차량 운영 | I192: =SUM(I193:I194) -> 377,898
G193: ㅇ통학차량 기사인건비 335NTD×1명×5시간×100일 | H193: = | I193: =335*1*5*100 -> 167,500
G194: ㅇ통학차량 기사인건비 435NTD×1명×5시간×100일 | H194: = | I194: =435*100*5-7102 -> 210,398
G195: 2. 졸업앨범 제작(초등학교) | I195: =SUM(I196:I196) -> 4,902
G196: ㅇ졸업앨범(초등학교) 3명× 1,634 NTD | H196: = | I196: =1634*3 -> 4,902
G197: 3. 졸업앨범 제작(유치원) | I197: =SUM(I198:I198) -> 18,120
G198: ㅇ졸업앨범(유치원) 10명× 1,812 NTD | H198: = | I198: =1812*10 -> 18,120
A199: 예비비및기타 | C199: 0 | D199: 0 | E199: =I199 -> 0 | F199: 0 | H199: = | I199: =I201+I203+I205+I207 -> 0
B201: - 예비비 | C201: 0 | D201: 0 | F201: 0 | G201: 1. 예비비
B203: - 다음연도이월금 | C203: 0 | D203: 0 | E203: =I203 -> 0 | F203: 0 | G203: 1. 다음연도 이월금 | I203: =I204 -> 0
B205: - 적립금 | C205: 0 | D205: 0 | E205: 0 | F205: 0 | G205: 1. 적립금 | I205: 0
B207: - 환차손 | C207: 0 | D207: 0 | E207: 0 | F207: 0 | G207: 1. 환차손 | I207: 0
A209: 합 계 | C209: =SUM(C199,C167,C162,C158,C53,C5) -> 20,164,897 | D209: 0 | E209: =SUM(E199,E167,E162,E158,E53,E5) -> 19,957,995 | F209: =E209-C209 -> -206,902
